bitfinex-derivatives/quotes_BTCF0:USTF0_20251225
["timestamp","ask_amount","ask_price","bid_price","bid_amount"]
[1766705439545,0.00017175,87357.0,87340.0,0.05788]
[1766705440046,0.00017175,87357.0,87339.0,0.00017175]
[1766705440237,0.0114554,87356.0,87339.0,0.00017175]
[1766705440546,0.0114554,87356.0,87334.0,0.05788]
[1766705440943,0.0114544,87364.0,87335.0,0.0114581]
[1766705441134,0.0114544,87364.0,87338.0,0.0114577]
[1766705441340,0.0114548,87361.0,87334.0,0.0693382]
[1766705441841,0.0114548,87361.0,87339.0,0.00017175]
[1766705442051,0.0114537,87369.0,87339.0,0.00017175]
[1766705442239,0.0114532,87373.0,87339.0,0.00017175]
[1766705442440,0.0114532,87373.0,87347.0,0.0114566]
[1766705442636,0.1244417,87390.0,87348.0,0.05788]
[1766705442637,0.0114522,87381.0,87348.0,0.05788]
[1766705442852,0.15524,87380.0,87348.0,0.05788]
[1766705443144,0.00017175,87373.0,87355.0,0.00017175]
[1766705444048,0.00017175,87373.0,87355.0,0.01162715]
[1766705444748,0.00017175,87373.0,87355.0,0.05805175]
[1766705444951,0.00017175,87373.0,87356.0,0.0114553]
[1766705445146,0.09736,87388.0,87365.0,0.0114542]
[1766705445346,0.0114506,87393.0,87369.0,0.0114537]
[1766705445533,0.0114506,87393.0,87365.0,0.15524]
[1766705445534,0.0114508,87391.0,87365.0,0.1666941]
[1766705446146,0.00017175,87387.0,87369.0,0.00017175]
[1766705446948,0.00017175,87387.0,87370.0,0.0114535]
[1766705447136,0.15524,87394.0,87373.0,0.0114531]
[1766705447137,0.09736,87394.0,87373.0,0.0114531]
[1766705447447,0.0114523,87380.0,87339.0,0.0114576]
[1766705447640,0.0114523,87380.0,87315.0,0.19445985]
[1766705447641,1.5,87399.0,87357.0,0.0114552]
[1766705447840,0.0114518,87384.0,87358.0,0.1466]
[1766705448041,0.0114521,87381.0,87358.0,0.1466]
[1766705448438,1.5,87399.0,87358.0,0.1466]
[1766705448645,0.00017175,87387.0,87370.0,0.00017175]
[1766705450340,0.00017175,87387.0,87371.0,0.0114534]
[1766705450550,0.01145,87398.0,87371.0,0.0114534]
[1766705450744,0.0114503,87395.0,87371.0,0.0114534]
[1766705450945,0.02635378,87394.0,87371.0,0.0114534]
[1766705451141,0.0114503,87395.0,87371.0,0.0114534]
[1766705451142,0.0054503,87395.0,87371.0,0.0114534]
[1766705451343,0.10206905,87435.0,87371.0,0.0114534]
[1766705451344,0.0114458,87430.0,87380.0,0.1244417]
[1766705451551,0.1244417,87440.0,87396.0,0.00017166]
[1766705451752,0.0114459,87429.0,87397.0,0.09748]
[1766705451955,0.09736,87431.0,87402.0,0.0114492]
[1766705452155,0.0114458,87429.0,87402.0,0.0114492]
[1766705452348,0.0114458,87429.0,87398.0,0.0114498]
[1766705452546,0.00017166,87422.0,87398.0,0.0114498]
[1766705452943,0.00017166,87422.0,87406.0,0.0114487]
[1766705453252,0.09736,87430.0,87414.0,0.0114478]
[1766705453456,0.09736,87439.0,87416.0,0.0114475]
[1766705453751,0.09736,87439.0,87419.0,0.0114471]
[1766705453953,0.09736,87439.0,87422.0,0.0114467]
[1766705454150,0.00022894,87446.0,87422.0,0.0114467]
[1766705454357,9.61e-05,87443.0,87425.0,0.01161796]
[1766705454658,9.61e-05,87443.0,87425.0,0.00017166]
[1766705456857,0.0115401,87443.0,87425.0,0.00017166]
[1766705457153,0.0114444,87440.0,87422.0,0.15312209]
[1766705457553,9.61e-05,87443.0,87422.0,0.15312209]
[1766705457764,0.0114441,87442.0,87422.0,0.15312209]
[1766705458059,0.0114441,87442.0,87423.0,0.00017156]
[1766705460355,9.61e-05,87443.0,87423.0,1.56e-06]
[1766705460554,0.0114443,87441.0,87381.0,0.011452]
[1766705460855,0.01167264,87446.0,87423.0,0.0114465]
[1766705461444,0.00017156,87443.0,87426.0,0.00017156]
[1766705462250,0.00017156,87443.0,87426.0,0.01161766]
[1766705463260,0.00017156,87443.0,87427.0,0.05784]
[1766705463462,0.01161566,87443.0,87427.0,0.15516]
[1766705463954,0.00017156,87443.0,87427.0,0.13216]
[1766705466952,0.00017156,87443.0,87426.0,0.00017156]
[1766705466953,0.0114458,87430.0,87426.0,1.56e-06]
[1766705467149,0.011445,87436.0,87414.0,0.0114477]
[1766705467354,0.00022894,87446.0,87415.0,0.1666076]
[1766705467561,0.0114444,87440.0,87417.0,0.0114473]
[1766705467960,0.011444,87443.0,87420.0,0.0114469]
[1766705468152,0.00017156,87437.0,87420.0,0.0114469]
[1766705468554,0.00017156,87437.0,87422.0,0.0114467]
[1766705468754,0.00017156,87437.0,87419.0,0.00017156]
[1766705469060,0.00022894,87446.0,87419.0,0.00017156]
[1766705469261,0.00022894,87446.0,87431.0,0.0114455]
[1766705469859,0.09732,87457.0,87434.0,0.0114451]
[1766705470164,0.01161416,87454.0,87437.0,0.00017156]
[1766705470361,0.00017156,87454.0,87419.0,0.0114471]
[1766705470561,0.0114434,87448.0,87424.0,0.0114464]
[1766705470765,0.011443,87451.0,87425.0,0.05784]
[1766705470956,0.011443,87451.0,87425.0,0.15516]
[1766705471155,0.0114433,87448.0,87425.0,0.1666062]
[1766705471355,0.0114433,87448.0,87428.0,0.00017156]
[1766705472158,0.0114443,87441.0,87428.0,0.00017156]
[1766705472355,0.00017156,87454.0,87417.0,0.09732]
[1766705472356,0.0578,87446.0,87417.0,0.09732]
[1766705472656,0.0578,87446.0,87385.0,0.12472705]
[1766705472657,0.05784,87446.0,87386.0,0.1203]
[1766705472858,0.05784,87446.0,87377.0,0.0114526]
[1766705472859,0.02529076,87445.0,87399.0,0.0114497]
[1766705473066,0.02529076,87444.0,87400.0,0.15512]
[1766705473261,0.02529076,87443.0,87396.0,0.0114501]
[1766705473572,0.39460636,87450.0,87411.0,0.00017156]
[1766705473573,0.0114469,87421.0,87411.0,0.00017156]
[1766705474264,0.0114468,87422.0,87396.0,0.05784]
[1766705474764,0.0114471,87420.0,87398.0,0.0114499]
[1766705475353,0.0114471,87420.0,87400.0,0.00017156]
[1766705475958,0.0114473,87418.0,87400.0,0.00017156]
[1766705477766,0.0114474,87418.0,87400.0,0.00017156]
[1766705477966,0.0114463,87426.0,87400.0,0.00017156]
[1766705478268,0.0114475,87417.0,87400.0,0.00017156]
[1766705479671,0.0114484,87410.0,87400.0,0.00017156]
[1766705479868,0.09732,87418.0,87400.0,0.00017156]
[1766705480063,0.09732,87418.0,87397.0,0.09732]
[1766705480373,0.09732,87418.0,87388.0,0.1087711]
[1766705480962,0.0114483,87411.0,87391.0,0.0114508]
[1766705481165,0.0114485,87409.0,87391.0,0.0114508]
[1766705481382,0.0114485,87409.0,87388.0,0.09732]
[1766705481383,0.0091605,87409.0,87388.0,0.0114511]
[1766705481670,0.00017156,87410.0,87368.0,0.0114537]
[1766705481671,0.0114508,87391.0,87368.0,0.0114537]
[1766705481862,0.00017166,87388.0,87368.0,0.0114537]
[1766705482778,0.00017166,87388.0,87364.0,0.0114542]
[1766705483072,0.00017166,87388.0,87367.0,0.0114538]
[1766705483781,0.00017166,87388.0,87368.0,0.09732]
[1766705484180,0.09732,87392.0,87372.0,0.0114532]
[1766705484374,0.09732,87392.0,87369.0,0.00017166]
[1766705484575,0.09732,87392.0,87370.0,0.0114535]
[1766705484777,0.0114538,87369.0,87359.0,0.00022894]
[1766705484986,0.011454,87367.0,87345.0,0.09732]
[1766705485194,0.09732,87373.0,87345.0,0.09732]
[1766705485382,0.0114546,87362.0,87345.0,0.09732]
[1766705485582,0.0114542,87366.0,87345.0,0.09732]
[1766705485884,0.00017166,87364.0,87345.0,0.09732]
[1766705488885,0.05788,87374.0,87345.0,0.09732]
[1766705488886,0.0114523,87380.0,87356.0,0.0114554]
[1766705489091,0.09732,87382.0,87355.0,0.09732]
[1766705489290,0.0114529,87376.0,87350.0,0.0114561]
[1766705489587,0.0114529,87376.0,87352.0,0.0114558]
[1766705489792,0.09732,87376.0,87349.0,0.09732]
[1766705489992,0.00017166,87371.0,87354.0,0.01162716]
[1766705491194,0.0114526,87378.0,87354.0,0.01162716]
[1766705491386,0.09736,87377.0,87354.0,0.01162716]
[1766705492182,0.00017166,87374.0,87357.0,0.0114552]
[1766705492387,0.011452,87382.0,87358.0,0.05788]
[1766705492586,0.011452,87382.0,87359.0,0.09736]
[1766705493298,0.0114524,87379.0,87355.0,0.0114554]
[1766705493518,0.00017166,87376.0,87355.0,0.0114554]
[1766705496002,0.00017166,87376.0,87357.0,0.0114551]
[1766705496693,0.00017166,87376.0,87356.0,0.0114553]
[1766705496891,0.00017166,87376.0,87354.0,0.15541166]
[1766705496892,0.00017166,87376.0,87354.0,0.00017166]
[1766705497096,0.00017166,87376.0,87355.0,0.1552]
[1766705497397,0.1088114,87387.0,87355.0,0.1552]
[1766705497398,0.09736,87387.0,87368.0,0.0114537]
[1766705497598,0.09507278,87387.0,87368.0,0.0692937]
[1766705497799,0.0114505,87394.0,87373.0,0.0114531]
[1766705498006,0.09736,87401.0,87378.0,0.0114524]
[1766705498395,0.00017166,87398.0,87381.0,0.00017166]
[1766705498695,0.0114497,87400.0,87381.0,0.00017166]
[1766705499104,0.06049122,87442.0,87391.0,0.0114507]
[1766705499305,0.0114455,87432.0,87394.0,0.0114504]
[1766705499492,0.3962,87440.0,87391.0,0.05784]
[1766705499493,0.00017166,87422.0,87404.0,0.00017166]
[1766705499693,0.0114488,87407.0,87384.0,0.0114516]
[1766705499901,0.0114488,87407.0,87385.0,0.1552]
[1766705500108,0.09736,87409.0,87386.0,0.0114514]
[1766705500303,0.09736,87409.0,87385.0,0.1552]
[1766705500605,0.011449,87405.0,87388.0,0.00017166]
[1766705500807,0.00017166,87406.0,87388.0,0.00017166]
[1766705502597,0.0114496,87400.0,87388.0,0.00017166]
[1766705502799,0.0114492,87403.0,87388.0,0.00017166]
[1766705503106,0.00017166,87406.0,87388.0,1.66e-06]
[1766705503603,0.011449,87405.0,87388.0,1.66e-06]
[1766705503803,0.00017166,87406.0,87388.0,1.66e-06]
[1766705504702,0.0114495,87401.0,87388.0,1.66e-06]
[1766705505005,0.0114495,87401.0,87375.0,0.0114529]
[1766705505006,0.0114499,87398.0,87377.0,0.05784]
[1766705505304,0.09736,87399.0,87378.0,0.09736]
[1766705505609,0.09736,87399.0,87366.0,0.04090662]
[1766705505610,0.0114507,87392.0,87369.0,0.0114536]
[1766705505806,0.0114503,87395.0,87369.0,0.0114536]
[1766705506005,0.0114503,87395.0,87373.0,0.00017166]
[1766705506414,0.09736,87399.0,87373.0,0.00017166]
[1766705506796,0.00017166,87406.0,87373.0,0.00017166]
[1766705507014,0.1552,87405.0,87373.0,0.00017166]
[1766705507207,0.0114504,87394.0,87373.0,0.00017166]
[1766705507409,0.0114507,87392.0,87373.0,0.00017166]
[1766705507610,0.09736,87393.0,87373.0,0.00017166]
[1766705508315,0.1088106,87393.0,87373.0,0.00017166]
[1766705509111,0.1666506,87393.0,87373.0,0.00017166]
[1766705511418,0.1552,87393.0,87373.0,0.00017166]
[1766705512119,0.00017166,87406.0,87373.0,0.00017166]
[1766705512424,0.13624,87405.0,87373.0,0.00017166]
[1766705512622,0.0114496,87401.0,87378.0,0.0114524]
[1766705514725,0.12463443,87400.0,87373.0,0.09753166]
[1766705514929,0.12463443,87390.0,87373.0,0.09753166]
[1766705515117,0.1666107,87392.0,87373.0,0.09753166]
[1766705516022,0.15516,87392.0,87373.0,0.10898466]
[1766705516525,0.0114503,87395.0,87373.0,0.10898466]
[1766705516725,0.0578,87398.0,87378.0,0.0114524]
[1766705516945,0.0114498,87399.0,87378.0,0.0114524]
[1766705517223,0.15516,87398.0,87378.0,0.0114524]
[1766705518618,0.0114498,87399.0,87378.0,0.0114524]
[1766705518925,0.0114501,87397.0,87375.0,0.0692128]
[1766705519313,0.0114501,87397.0,87377.0,0.0114526]
[1766705519513,0.0114497,87400.0,87377.0,0.0114526]
[1766705519921,0.15512,87401.0,87375.0,0.05776]
[1766705520123,0.0114506,87393.0,87375.0,0.05776]
[1766705520926,0.0114509,87391.0,87375.0,0.05776]
[1766705521827,0.05776,87398.0,87375.0,0.05776]
[1766705522217,0.0114506,87393.0,87375.0,0.05776]
[1766705524916,0.0114506,87393.0,87375.0,0.0692128]
[1766705525527,0.15512,87395.0,87375.0,0.0692128]
[1766705526818,0.15512,87395.0,87375.0,0.05776]
[1766705527330,0.15512,87395.0,87376.0,0.0114527]
[1766705529830,0.05772,87398.0,87376.0,0.0114527]
[1766705530531,0.0114502,87396.0,87375.0,0.05776]
[1766705530924,0.0114502,87396.0,87375.0,0.0692128]
[1766705533036,0.0114505,87394.0,87375.0,0.0692128]
[1766705533239,0.0114505,87394.0,87375.0,0.11011942]
[1766705534228,0.0114505,87394.0,87376.0,0.04090662]
[1766705535839,0.01145,87397.0,87377.0,0.0114525]
[1766705536037,0.01145,87397.0,87377.0,0.05235912]
[1766705536238,0.01145,87397.0,87377.0,0.0114525]
[1766705536640,0.01145,87397.0,87379.0,0.0114523]
[1766705536840,0.0114503,87395.0,87377.0,0.04090662]
[1766705537135,0.0114506,87393.0,87377.0,0.04090662]
[1766705537337,0.05772,87398.0,87377.0,0.04090662]
[1766705537523,0.05772,87398.0,87376.0,0.04090662]
[1766705537929,0.13610178,87390.0,87376.0,0.04090662]
[1766705538631,0.12465088,87390.0,87376.0,0.04090662]
[1766705538838,0.12465088,87390.0,87376.0,0.05235932]
[1766705540230,0.12465088,87390.0,87376.0,0.04090662]
[1766705542440,0.12465088,87386.0,87376.0,0.04090662]
[1766705542634,0.0114522,87381.0,87373.0,0.09753166]
[1766705542836,0.0114522,87381.0,87373.0,0.05785166]
[1766705543336,0.12465088,87383.0,87373.0,0.05785166]
[1766705545538,0.00017166,87386.0,87375.0,0.0114528]
[1766705545745,0.00017166,87386.0,87373.0,0.05785166]
[1766705546957,0.12465088,87383.0,87373.0,0.05785166]
[1766705547337,0.13610278,87383.0,87373.0,0.05785166]
[1766705547542,0.12465088,87383.0,87373.0,6e-08]
[1766705547750,0.0114532,87373.0,87357.0,0.05768]
[1766705547945,0.12465088,87367.0,87357.0,0.05768]
[1766705548649,0.0114528,87377.0,87357.0,0.05768]
[1766705548650,0.12465088,87370.0,87357.0,0.05768]
[1766705549948,0.05768,87376.0,87357.0,0.05768]
[1766705549949,0.12465088,87367.0,87357.0,0.05768]
[1766705550453,0.0114541,87366.0,87357.0,0.05768]
[1766705551242,0.12465088,87367.0,87357.0,0.05768]
[1766705551752,0.13610448,87370.0,87357.0,0.05768]
[1766705552945,0.0114536,87370.0,87357.0,0.05768]
[1766705553455,0.13610448,87370.0,87357.0,0.05768]
[1766705553650,0.0114539,87368.0,87357.0,0.05768]
[1766705553850,0.0114542,87366.0,87357.0,0.05768]
[1766705554043,0.0114542,87366.0,87353.0,0.00017166]
[1766705554243,0.0114542,87366.0,87354.0,0.05764]
[1766705554460,0.12465088,87364.0,87354.0,0.05764]
[1766705554847,0.00017166,87368.0,87354.0,0.05764]
[1766705555359,0.01162556,87368.0,87354.0,0.05764]
[1766705557250,0.12465088,87364.0,87354.0,0.05764]
[1766705557558,0.01162556,87368.0,87354.0,0.05764]
[1766705559255,0.0114541,87366.0,87354.0,0.05764]
[1766705559647,0.0114544,87364.0,87354.0,0.05764]
[1766705560057,0.0114551,87358.0,87353.0,6e-08]
[1766705560358,0.09736,87361.0,87340.0,0.5]
[1766705560653,0.12465088,87350.0,87334.0,0.05764]
[1766705561243,0.12465088,87360.0,87335.0,0.0114581]
[1766705561549,0.05764,87363.0,87341.0,0.0114573]
[1766705561742,0.12465088,87360.0,87342.0,0.155]
[1766705562857,0.13610578,87360.0,87342.0,0.155]
[1766705563157,0.12465088,87360.0,87342.0,0.155]
[1766705563359,0.12465088,87360.0,87342.0,0.152]
[1766705563858,0.05764,87363.0,87342.0,0.152]
[1766705564559,0.0114546,87362.0,87342.0,0.152]
[1766705564743,0.12465088,87360.0,87342.0,0.152]
[1766705565647,0.0114551,87359.0,87342.0,0.152]
[1766705566142,0.12465088,87360.0,87342.0,0.152]
[1766705567357,0.00017166,87368.0,87342.0,0.152]
[1766705567659,0.166454,87367.0,87342.0,0.1634572]
[1766705568463,0.155,87367.0,87342.0,0.152]
[1766705568758,0.12465088,87360.0,87342.0,0.152]
[1766705569057,0.0114548,87361.0,87342.0,0.152]
[1766705569261,0.12465088,87360.0,87342.0,0.152]
[1766705572550,0.0114548,87361.0,87342.0,0.152]
[1766705572863,0.12465088,87360.0,87342.0,0.152]
[1766705573757,0.01162556,87368.0,87342.0,0.152]
[1766705573950,0.05764,87372.0,87352.0,0.0114558]
[1766705574156,0.05764,87372.0,87354.0,0.0114556]
[1766705574355,0.12465088,87380.0,87354.0,0.0114556]
[1766705574660,0.09736,87382.0,87360.0,0.12465088]
[1766705574857,0.0690918,87384.0,87361.0,0.05764]
[1766705575057,0.00017166,87381.0,87364.0,0.00017166]
[1766705575363,0.0114518,87384.0,87364.0,0.00017166]
[1766705575953,0.0114518,87384.0,87364.0,0.01162586]
[1766705576251,0.12465023,87420.0,87376.0,0.0114527]
[1766705576252,0.09736,87396.0,87376.0,0.0114527]
[1766705576452,0.0114497,87400.0,87378.0,0.0114525]
[1766705576651,0.0114462,87427.0,87377.0,0.05764]
[1766705576652,0.09736,87404.0,87383.0,0.0114517]
[1766705576854,0.01716,87403.0,87384.0,0.05764]
[1766705577056,0.09736,87404.0,87384.0,0.05764]
[1766705577057,0.0114489,87406.0,87384.0,0.05764]
[1766705577259,0.0114492,87403.0,87384.0,0.05764]
[1766705577458,0.00017166,87402.0,87385.0,0.00017166]
[1766705578267,0.0114495,87401.0,87385.0,0.00017166]
[1766705578764,0.00017166,87402.0,87385.0,0.00017166]
[1766705579971,0.0114497,87399.0,87385.0,0.00017166]
[1766705580454,0.0114502,87396.0,87385.0,0.00017166]
[1766705580657,0.01145,87397.0,87385.0,0.00017166]
[1766705580966,0.0114496,87401.0,87385.0,0.00017166]
[1766705581162,0.00017166,87402.0,87384.0,0.03581166]
[1766705581867,0.01162106,87402.0,87384.0,0.03581166]
[1766705582063,0.0114499,87398.0,87384.0,0.03598332]
[1766705582664,0.0114495,87401.0,87380.0,0.0576]
[1766705582870,0.011451,87390.0,87370.0,0.0114535]
[1766705583069,0.011451,87390.0,87352.0,0.0114558]
[1766705583070,0.15496,87389.0,87358.0,0.09736]
[1766705583265,0.15496,87389.0,87355.0,0.0114554]
[1766705583266,0.0114513,87387.0,87359.0,0.0576]
[1766705583467,0.0114513,87387.0,87360.0,0.05764]
[1766705583664,0.00017166,87382.0,87365.0,6e-08]
[1766705583861,0.011454,87367.0,87352.0,0.0576]
[1766705584368,0.0690533,87372.0,87352.0,0.0576]
[1766705584575,0.0114537,87369.0,87352.0,0.0576]
[1766705584773,0.0576,87372.0,87352.0,0.06922756]
[1766705584974,0.0114535,87371.0,87352.0,0.05777166]
[1766705585469,0.0114555,87356.0,87352.0,6e-08]
[1766705585668,0.0114555,87356.0,87315.0,0.00022906]
[1766705585669,0.0114555,87356.0,87337.0,0.04104]
[1766705585979,0.05764,87363.0,87338.0,0.09736]
[1766705586168,0.12465023,87360.0,87332.0,0.05764]
[1766705586476,0.05764,87362.0,87330.0,0.09736]
[1766705586675,0.01162716,87355.0,87330.0,0.09736]
[1766705586971,0.09736,87354.0,87330.0,0.1088187]
[1766705587471,0.09736,87354.0,87330.0,0.09736]
[1766705587977,0.155,87353.0,87330.0,0.09736]
[1766705588277,0.05781166,87355.0,87335.0,0.0114581]
[1766705588467,0.00017166,87355.0,87330.0,0.1088188]
[1766705589176,0.0114519,87383.0,87331.0,0.0114586]
[1766705589372,0.011449,87405.0,87335.0,0.06157313]
[1766705589373,0.011453,87375.0,87335.0,0.06157313]
[1766705589673,0.0114534,87371.0,87341.0,0.0114573]
[1766705589875,0.0114528,87376.0,87342.0,0.155]
[1766705590063,0.0114528,87376.0,87343.0,0.09736]
[1766705590267,0.0114544,87364.0,87350.0,0.00017166]
[1766705590465,0.0114549,87360.0,87350.0,6e-08]
[1766705590665,0.0114549,87360.0,87306.0,0.10200342]
[1766705590666,0.0114554,87356.0,87337.0,0.03872]
[1766705591081,0.0114542,87366.0,87337.0,0.03872]
[1766705591273,0.0114546,87362.0,87337.0,0.03872]
[1766705591574,0.00017166,87358.0,87337.0,0.03872]
[1766705592071,0.0114559,87352.0,87337.0,0.03872]
[1766705592475,0.0114565,87348.0,87334.0,0.01145]
[1766705592779,0.0114561,87351.0,87334.0,0.01145]
[1766705593174,0.0114566,87347.0,87334.0,0.01145]
[1766705593374,0.011456,87352.0,87334.0,0.01145]
[1766705594070,0.155,87357.0,87334.0,0.01145]
[1766705594270,0.0114558,87354.0,87334.0,0.01145]
[1766705594968,0.0091678,87354.0,87334.0,0.01145]
[1766705595270,0.0114559,87352.0,87334.0,0.01145]
[1766705595577,0.11248,87353.0,87286.0,0.08210576]
[1766705595774,0.18295339,87320.0,87245.0,0.02034992]
[1766705595965,0.18295339,87320.0,87243.0,0.01634085]
[1766705595966,0.011464,87291.0,87243.0,0.01634085]
[1766705596163,0.0114683,87258.0,87240.0,0.01791654]
[1766705596365,0.0114643,87289.0,87230.0,0.00532292]
[1766705596366,0.15524,87257.0,87230.0,0.00532292]
[1766705596563,0.00017189,87252.0,87226.0,6e-08]
[1766705596765,0.00011654,87251.0,87226.0,6e-08]
[1766705596979,0.01158574,87251.0,87226.0,6e-08]
[1766705597174,0.00011654,87251.0,87226.0,6e-08]
[1766705597675,0.00011654,87251.0,87227.0,0.0114722]
[1766705597880,0.00011654,87251.0,87226.0,6e-08]
[1766705597881,0.05792,87265.0,87230.0,0.01164379]
[1766705598080,0.0114667,87270.0,87239.0,0.0114707]
[1766705598373,0.09359064,87291.0,87226.0,6e-08]
[1766705598374,0.0114669,87269.0,87238.0,0.0114708]
[1766705598582,0.10876,87268.0,87234.0,0.14204]
[1766705598768,0.0114673,87266.0,87235.0,0.14204]
[1766705598974,0.00017189,87259.0,87242.0,0.00017189]
[1766705599277,0.011469,87252.0,87242.0,9e-08]
[1766705599487,0.0114697,87247.0,87230.0,0.05808]
[1766705599674,0.15548,87253.0,87226.0,6e-08]
[1766705599876,0.15548,87253.0,87225.0,2e-08]
[1766705599877,0.0114706,87241.0,87225.0,2e-08]
[1766705600066,0.0114697,87248.0,87225.0,2e-08]
[1766705600380,0.05812,87243.0,87225.0,2e-08]
[1766705600588,0.0974,87242.0,87225.0,2e-08]
[1766705600783,0.00017189,87259.0,87225.0,2e-08]
[1766705601081,0.1089083,87258.0,87225.0,0.01147262]
[1766705601472,0.00017189,87259.0,87234.0,0.0114714]
[1766705601675,0.09761189,87259.0,87234.0,0.09744]
[1766705601884,0.00017189,87259.0,87234.0,0.09744]
[1766705602081,0.00017189,87259.0,87239.0,0.0114707]
[1766705602286,0.00017189,87259.0,87234.0,0.1089114]
[1766705602778,0.00017189,87259.0,87225.0,2e-08]
[1766705602983,0.00918033,87246.0,87225.0,2e-08]
[1766705603184,0.0114702,87244.0,87225.0,2e-08]
[1766705603378,0.00017189,87259.0,87225.0,2e-08]
[1766705603686,0.0114694,87250.0,87225.0,2e-08]
[1766705604184,0.00017189,87259.0,87225.0,0.01147262]
[1766705604185,0.0114684,87258.0,87225.0,0.01147262]
[1766705604486,0.00017189,87259.0,87229.0,0.011472]
[1766705604682,0.00017189,87259.0,87234.0,0.0114713]
[1766705604882,0.09744,87258.0,87234.0,0.0114713]
[1766705605186,0.09744,87258.0,87228.0,0.09744]
[1766705605490,0.0114685,87257.0,87228.0,0.09744]
[1766705605676,0.0114642,87289.0,87235.0,0.0114712]
[1766705605871,0.08954583,87293.0,87228.0,0.09744]
[1766705605872,0.38131015,87288.0,87228.0,0.09744]
[1766705606180,0.08954583,87293.0,87228.0,0.09744]
[1766705606181,0.0114681,87259.0,87228.0,0.09744]
[1766705606381,0.1089081,87259.0,87228.0,0.09744]
[1766705606678,0.1089081,87259.0,87235.0,0.00017189]
[1766705606884,0.09744,87258.0,87235.0,0.00017189]
[1766705607086,0.09748,87263.0,87235.0,0.01164309]
[1766705607480,0.0114683,87258.0,87235.0,0.00017189]
[1766705607873,0.00017189,87255.0,87235.0,0.00017189]
[1766705608275,0.09748,87259.0,87235.0,0.09765189]
[1766705608485,0.09748,87259.0,87235.0,0.09748]
[1766705608678,0.0114688,87254.0,87235.0,0.09748]
[1766705608878,0.1089482,87259.0,87235.0,0.09748]
[1766705609281,0.00017189,87256.0,87238.0,0.00017189]
[1766705609582,0.1089482,87259.0,87238.0,0.00017189]
[1766705609583,0.09748,87263.0,87238.0,0.00017189]
[1766705609985,0.0610808,87298.0,87243.0,0.0114702]
[1766705610185,0.24372,87289.0,87244.0,0.05812]
[1766705610378,0.0114652,87281.0,87244.0,0.05812]
[1766705610580,0.0114634,87287.0,87259.0,0.0114669]
[1766705610781,0.0114638,87284.0,87260.0,0.09748]
[1766705610976,0.02270634,87313.0,87260.0,0.09748]
[1766705610977,0.011459,87320.0,87260.0,0.09748]
[1766705611177,0.0114619,87298.0,87260.0,0.09748]
[1766705611490,0.0114583,87326.0,87264.0,0.0114662]
[1766705611687,0.08144681,87345.0,87264.0,0.0114662]
[1766705611688,0.09748,87327.0,87273.0,0.0114651]
[1766705611888,0.0114585,87324.0,87295.0,0.0114622]
[1766705612084,0.011458,87328.0,87300.0,0.0114615]
[1766705612290,0.011458,87328.0,87296.0,0.1066]
[1766705612291,1.5,87331.0,87310.0,0.0114602]
[1766705612587,9.464e-05,87329.0,87312.0,0.00017178]
[1766705613290,0.0114579,87328.0,87312.0,0.00017178]
[1766705613592,0.0114584,87325.0,87310.0,0.08365178]
[1766705613793,0.01155244,87329.0,87310.0,0.08365178]
[1766705614179,0.0114585,87324.0,87310.0,0.08365178]
[1766705614494,0.0114579,87328.0,87310.0,0.08365178]
[1766705614686,0.24368,87356.0,87310.0,0.08365178]
[1766705614884,0.18441663,87355.0,87317.0,0.0114592]
[1766705615080,0.0114564,87340.0,87317.0,0.0114592]
[1766705615486,0.1089353,87348.0,87310.0,0.08365178]
[1766705615680,0.00017178,87338.0,87320.0,8e-08]
[1766705615883,0.0114559,87344.0,87305.0,0.09748]
[1766705615884,0.011459,87320.0,87305.0,0.09748]
[1766705616093,0.09748,87334.0,87305.0,0.09748]
[1766705616392,0.09744,87334.0,87305.0,0.09748]
[1766705616787,0.00017178,87328.0,87311.0,0.00017178]
[1766705616999,0.0114574,87332.0,87311.0,0.00017178]
[1766705617497,0.09744,87346.0,87317.0,0.0114592]
[1766705617701,0.09744,87346.0,87294.0,0.0114622]
[1766705617702,0.0114561,87342.0,87278.0,0.0114644]
[1766705617891,0.0114608,87307.0,87301.0,8e-08]
[1766705618087,0.0114612,87303.0,87294.0,0.09744]
[1766705618282,0.0114612,87303.0,87286.0,0.05816]
[1766705618488,0.0114612,87303.0,87262.0,0.24364]
[1766705618489,0.09744,87304.0,87265.0,0.0114661]
[1766705618691,0.09744,87303.0,87266.0,0.1556]
[1766705618985,0.00017178,87293.0,87276.0,0.00017178]
[1766705619189,0.0114634,87286.0,87276.0,0.00017178]
[1766705619497,0.0114626,87292.0,87273.0,0.09744]
[1766705619696,0.0114632,87288.0,87273.0,0.09744]
[1766705620291,0.0114645,87278.0,87272.0,0.00017178]
[1766705620594,0.00246293,87293.0,87272.0,0.00017178]
[1766705620595,0.011464,87282.0,87272.0,0.00017178]
[1766705620788,0.0114644,87279.0,87272.0,8e-08]
[1766705620981,0.0114644,87279.0,87267.0,0.05816]
[1766705621187,0.0114644,87279.0,87265.0,0.09744]
[1766705621188,0.49744,87278.0,87229.0,0.0114709]
[1766705621389,0.0114688,87246.0,87227.0,0.00022929]
[1766705621598,0.09744,87256.0,87227.0,0.00022929]
[1766705622008,0.00010074,87255.0,87241.0,5e-08]
[1766705622198,0.0114689,87245.0,87241.0,5e-08]
[1766705622497,0.0114689,87245.0,87227.0,0.00022929]
[1766705622498,0.0114683,87249.0,87227.0,0.00022929]
[1766705623395,0.0114681,87251.0,87229.0,0.00017189]
[1766705624496,0.0114685,87248.0,87229.0,0.00017189]
[1766705625402,0.00010074,87255.0,87229.0,0.00017189]
[1766705625605,0.03078687,87254.0,87229.0,0.00017189]
[1766705625799,0.0114687,87247.0,87229.0,0.00017189]
[1766705626199,0.0114687,87247.0,87206.0,0.09748]
[1766705626200,0.0114692,87242.0,87206.0,0.09748]
[1766705626397,0.03078007,87241.0,87206.0,0.09748]
[1766705626607,0.0114701,87236.0,87208.0,0.0114737]
[1766705626791,0.12826007,87235.0,87212.0,0.0114731]
[1766705626998,0.03078007,87234.0,87206.0,0.09748]
[1766705627208,0.01164279,87229.0,87211.0,0.00011473]
[1766705627500,0.00017189,87229.0,87212.0,0.0114731]
[1766705627698,0.00017189,87229.0,87211.0,0.00011473]
[1766705628303,0.03075553,87228.0,87184.0,0.15572]
[1766705628498,0.03075553,87227.0,87203.0,0.0114743]
[1766705628699,0.03075553,87226.0,87208.0,0.0114735]
[1766705629002,0.00017189,87229.0,87209.0,0.09748]
[1766705629205,0.00017189,87229.0,87210.0,0.09748]
[1766705629709,0.00010074,87234.0,87217.0,0.0114724]
[1766705629896,0.00010074,87234.0,87218.0,0.05824]